fUST/lending_fUST_20250529
["ID","MTS","AMOUNT","RATE_DAILY","PERIOD"]
[362913991,1748519460643,-509.19,0.00022465,2]
[362913993,1748519460652,-430.0,0.00022465,2]
[362913995,1748519460662,-273.87,0.00022465,2]
[362913997,1748519460672,-844.05,0.00022465,2]
[362913999,1748519460682,-430.0,0.00022465,2]
[362914001,1748519460691,-430.0,0.00022465,2]
[362914003,1748519460701,-720.8,0.00022465,2]
[362914005,1748519460712,-485.57146413,0.00022465,2]
[362914007,1748519460721,-496.15,0.00022465,2]
[362914009,1748519460730,-430.0,0.00022465,2]
[362914011,1748519460740,-468.76,0.00022465,2]
[362914013,1748519460750,-763.2,0.00022465,2]
[362914015,1748519460761,-216.59771354,0.00022624,7]
[362914017,1748519460775,-430.0,0.00022739,2]
[362914019,1748519460785,-973.02,0.00022739,2]
[362914021,1748519460795,-660.74,0.00022739,2]
[362914023,1748519460805,-430.0,0.00022739,2]
[362914025,1748519460816,-509.19,0.00022739,2]
[362914027,1748519460826,-430.0,0.00022739,2]
[362914029,1748519460836,-844.05,0.00022739,2]
[362914031,1748519460847,-430.0,0.00022739,2]
[362914033,1748519460857,-278.1,0.00022739,2]
[362914035,1748519460866,-720.8,0.00022739,2]
[362914037,1748519460876,-496.15,0.00022739,2]
[362914039,1748519460885,-430.0,0.00022739,2]
[362914041,1748519460896,-468.76,0.00022739,2]
[362914042,1748519460906,-763.2,0.00022739,2]
[362914044,1748519460916,-251.23553649,0.00022776,2]
[362914047,1748519460928,-412.69,0.00023013,2]
[362914048,1748519460938,-973.02,0.00023013,2]
[362914050,1748519460948,-660.74,0.00023013,2]
[362914052,1748519460958,-430.0,0.00023013,2]
[362914055,1748519460968,-509.19,0.00023013,2]
[362914056,1748519460977,-430.0,0.00023013,2]
[362914059,1748519460987,-844.05,0.00023013,2]
[362914060,1748519460996,-430.0,0.00023013,2]
[362914063,1748519461007,-720.8,0.00023013,2]
[362914064,1748519461017,-496.15,0.00023013,2]
[362914067,1748519461032,-430.0,0.00023013,2]
[362914068,1748519461041,-468.76,0.00023013,2]
[362914070,1748519461051,-763.2,0.00023013,2]
[362914072,1748519461060,-216.59771354,0.00023038,8]
[362914074,1748519461069,-207.4,0.00023237,2]
[362914076,1748519461079,-216.59771354,0.00023245,8]
[362914078,1748519461089,-160.0,0.00023287,2]
[362914080,1748519461098,-973.02,0.00023287,2]
[362914082,1748519461108,-660.74,0.00023287,2]
[362914084,1748519461119,-430.0,0.00023287,2]
[362914086,1748519461128,-509.19,0.00023287,2]
[362914088,1748519461138,-430.0,0.00023287,2]
[362914090,1748519461147,-844.05,0.00023287,2]
[362914092,1748519461157,-505.1,0.00023287,2]
[362914094,1748519461167,-720.8,0.00023287,2]
[362914096,1748519461176,-496.15,0.00023287,2]
[362914098,1748519461186,-430.0,0.00023287,2]
[362914100,1748519461195,-468.76,0.00023287,2]
[362914102,1748519461205,-763.2,0.00023287,2]
[362914104,1748519461214,-167.40859968,0.000233,2]
[362914106,1748519461223,-500.0,0.00023356,2]
[362914108,1748519461233,-27372.07,0.000234,2]
[362914110,1748519461242,-4236.88,0.000234,2]
[362914111,1748519461252,-216.59771354,0.00023452,9]
[362914113,1748519461263,-2923.1,0.00023561,2]
[362914115,1748519461278,-973.02,0.00023561,2]
[362914117,1748519461288,-660.74,0.00023561,2]
[362914119,1748519461297,-430.0,0.00023561,2]
[362914121,1748519461309,-509.19,0.00023561,2]
[362914123,1748519461319,-572.18,0.00023561,2]
[362914125,1748519461329,-844.05,0.00023561,2]
[362914127,1748519461338,-720.8,0.00023561,2]
[362914129,1748519461349,-496.15,0.00023561,2]
[362914131,1748519461359,-430.0,0.00023561,2]
[362914133,1748519461369,-468.76,0.00023561,2]
[362914135,1748519461379,-763.2,0.00023561,2]
[362914137,1748519461389,-216.59771354,0.00023659,9]
[362914139,1748519461399,-961.0,0.00023785,2]
[362914140,1748519461408,-2230.0,0.00023785,2]
[362914142,1748519461418,-708.0,0.00023785,2]
[362914144,1748519461428,-405.0,0.00023785,2]
[362914146,1748519461437,-994.17,0.000238,7]
[362914148,1748519461446,-432.3,0.000238,2]
[362914150,1748519461455,-973.02,0.00023835,2]
[362914152,1748519461466,-660.74,0.00023835,2]
[362914154,1748519461475,-493.78,0.00023835,2]
[362914156,1748519461485,-509.19,0.00023835,2]
[362914158,1748519461495,-844.05,0.00023835,2]
[362914160,1748519461504,-720.8,0.00023835,2]
[362914162,1748519461514,-496.15,0.00023835,2]
[362914164,1748519461528,-430.0,0.00023835,2]
[362914165,1748519461539,-468.76,0.00023835,2]
[362914167,1748519461549,-763.2,0.00023835,2]
[362914169,1748519461558,-216.59771354,0.00023866,10]
[362914171,1748519461566,-31109.12,0.000239,7]
[362914173,1748519461576,-229.26895353,0.00024,7]
[362914175,1748519461585,-216.59771354,0.00024072,10]
[362914177,1748519461596,-151.0,0.00024109,7]
[362914179,1748519461606,-151.0,0.00024109,7]
[362914181,1748519461616,-151.0,0.00024109,7]
[362914183,1748519461626,-197.155,0.00024109,2]
[362914185,1748519461636,-973.02,0.00024109,2]
[362914187,1748519461646,-660.74,0.00024109,2]
[362914189,1748519461655,-509.19,0.00024109,2]
[362914191,1748519461665,-844.05,0.00024109,2]
[362914193,1748519461674,-720.8,0.00024109,2]
[362914195,1748519461683,-496.15,0.00024109,2]
[362914197,1748519461692,-430.0,0.00024109,2]
[362914199,1748519461702,-468.76,0.00024109,2]
[362914201,1748519461711,-763.2,0.00024109,2]
[362914202,1748519461720,-216.59771354,0.00024279,10]
[362914204,1748519461730,-973.02,0.00024383,2]
[362914206,1748519461739,-660.74,0.00024383,2]
[362914208,1748519461749,-509.19,0.00024383,2]
[362914210,1748519461758,-844.05,0.00024383,2]
[362914212,1748519461767,-720.8,0.00024383,2]
[362914214,1748519461781,-496.15,0.00024383,2]
[362914216,1748519461790,-430.0,0.00024383,2]
[362914218,1748519461799,-468.76,0.00024383,2]
[362914220,1748519461809,-763.2,0.00024383,2]
[362914222,1748519461818,-926.9674,0.00024437,15]
[362914224,1748519461827,-216.59771354,0.00024486,11]
[362914226,1748519461836,-520.31,0.000245,7]
[362914228,1748519461846,-360.569093,0.000245,3]
[362914230,1748519461855,-27372.07,0.000246,2]
[362914232,1748519461864,-215.0738,0.00024606,2]
[362914234,1748519461874,-394.31,0.00024657,3]
[362914235,1748519461884,-973.02,0.00024657,2]
[362914237,1748519461900,-660.74,0.00024657,2]
[362914239,1748519461910,-509.19,0.00024657,2]
[362914241,1748519461919,-844.05,0.00024657,2]
[362914243,1748519461929,-720.8,0.00024657,2]
[362914245,1748519461939,-496.15,0.00024657,2]
[362914247,1748519461948,-492.35008061,0.00024657,2]
[362914249,1748519461958,-468.76,0.00024657,2]
[362914251,1748519461967,-763.2,0.00024657,2]
[362914253,1748519461977,-201.72443497,0.00024658,2]
[362914255,1748519461986,-216.59771354,0.00024693,11]
[362914257,1748519461995,-4236.88,0.000247,2]
[362914259,1748519462004,-801.9291193,0.000248,2]
[362914260,1748519462013,-801.9291193,0.00024821,2]
[362914263,1748519462098,-801.9291193,0.00024842,2]
[362914264,1748519462108,-801.9291193,0.00024863,2]
[362914265,1748519462118,-801.9291193,0.00024884,2]
[362914266,1748519462128,-151.0,0.000249,7]
[362914267,1748519462138,-151.0,0.000249,7]
[362914268,1748519462148,-151.0,0.000249,7]
[362914269,1748519462157,-2000.0,0.000249,2]
[362914270,1748519462167,-152.75,0.000249,31]
[362914271,1748519462176,-152.75,0.000249,31]
[362914272,1748519462185,-152.75,0.000249,31]
[362914273,1748519462195,-152.75,0.000249,31]
[362914274,1748519462204,-152.75,0.000249,31]
[362914275,1748519462214,-152.75,0.000249,31]
[362914276,1748519462223,-152.75,0.000249,31]
[362914277,1748519462234,-152.75,0.000249,31]
[362914278,1748519462243,-152.75,0.000249,31]
[362914280,1748519462253,-152.75,0.000249,31]
[362914282,1748519462264,-152.75,0.000249,31]
[362914284,1748519462278,-172871.619564,0.000249,2]
[362914286,1748519462287,-216.59771354,0.000249,12]
[362914288,1748519462299,-668.49404634,0.000249,2]
[362914290,1748519462309,-801.9291193,0.00024906,2]
[362914292,1748519462318,-801.9291193,0.00024927,2]
[362914294,1748519462328,-973.02,0.00024931,2]
[362914296,1748519462338,-660.74,0.00024931,2]
[362914298,1748519462349,-509.19,0.00024931,2]
[362914300,1748519462359,-844.05,0.00024931,2]
[362914302,1748519462370,-720.8,0.00024931,2]
[362914304,1748519462379,-496.15,0.00024931,2]
[362914306,1748519462388,-468.76,0.00024931,2]
[362914308,1748519462398,-763.2,0.00024931,2]
[362914310,1748519462407,-801.9291193,0.00024948,2]
[362914312,1748519462417,-801.9291193,0.00024969,2]
[362914314,1748519462426,-801.9291193,0.0002499,2]
[362914316,1748519462438,-150337.71930285,0.00025,2]
[362914329,1748519462555,-7153.9988925,0.00025,2]
[362914331,1748519462567,-6609.94095334,0.00025,2]
[362914333,1748519462578,-9267.06488843,0.00025,2]
[362914335,1748519462588,-1535.21419782,0.00025,3]
[362914337,1748519462598,-18010.94098744,0.00025,30]
[362914340,1748519462611,-5242.38598848,0.00025,30]
[362914352,1748519462718,-300.0,0.00019166,2]
[362914354,1748519462728,-430.0,0.00019178,2]
[362914356,1748519462738,-254.84,0.00019178,2]
[362914363,1748519462808,-5000.0,0.00018974,2]
[362914365,1748519462817,-120.94760917,0.00019178,2]
[362914367,1748519462826,-430.0,0.00019178,2]
[362914369,1748519462835,-430.0,0.00019178,2]
[362914371,1748519462844,-45969.61639121,0.00019178,2]
[362914373,1748519462853,-38154.1459079,0.00025,30]
[362914376,1748519462865,-11415.2851,0.00025,30]
[362914378,1748519462876,-25134.16962402,0.00025,30]
[362914380,1748519462889,-13771.022743,0.00025,30]
[362914382,1748519462902,-31071.1278788,0.00025,30]
[362914384,1748519462965,-430.0,0.00019178,2]
[362914385,1748519462975,-501.90852557,0.00019178,2]
[362914386,1748519462984,-10222.08591435,0.00025,30]
[362915494,1748519536014,175.450051,0.00013699,2]
[362915497,1748520052648,162.9,0.00015343,2]
[362915498,1748520053208,195.49,0.00015957,2]
[362915499,1748520125291,156.39,0.00015939,2]
[362915500,1748520148183,324.1876282,0.00024657,120]
[362915503,1748520296930,2925134.78310963,0.00024657,120]
[362915507,1748520603141,2320.06191909,0.00016,2]
[362915508,1748520603171,7685.02299625,0.00016,2]
[362915530,1748520637388,-162.55,0.00016585,2]
[362915531,1748520637398,-1065.62765162,0.00016751,2]
[362915532,1748520637545,-3850.9656559,0.00016751,2]
[362915533,1748520637599,-83.40669248,0.00016751,2]
[362915534,1748520637609,-185.77,0.00017199,2]
[362915535,1748520637618,-208.99,0.00017814,2]
[362915536,1748520637627,-190.355759,0.00018086,2]
[362915537,1748520637636,-300.0,0.0001815,2]
[362915538,1748520637648,-7166.79909163,0.00018151,2]
[362915547,1748520638660,-5342.24710577,0.00018151,2]
[362915548,1748520638670,-232.21,0.00018428,2]
[362915549,1748520638679,-583.42893485,0.000189,2]
[362915550,1748520638690,-195.49153835,0.00019078,2]
[362915551,1748520638699,-583.4289346,0.00019107,2]
[362915552,1748520638709,-500.0,0.00019173,2]
[362915553,1748520638719,-333.76204447,0.00019176,2]
[362915554,1748520638729,-500.0,0.00019176,2]
[362915555,1748520638739,-306.99083935,0.00019176,2]
[362915556,1748520638750,-500.0,0.00019176,2]
[362915557,1748520638758,-160.0,0.00019177,2]
[362915558,1748520638766,-500.0,0.00019177,2]
[362915559,1748520638775,-500.0,0.00019177,2]
[362915560,1748520638783,-565.76114262,0.00019177,2]
[362915561,1748520638792,-273.76609035,0.00019177,2]
[362915562,1748520638801,-500.0,0.00019177,2]
[362915564,1748520638810,-565.76114262,0.00019177,2]
[362915565,1748520638820,-565.76114262,0.00019177,2]
[362915566,1748520638829,-565.76114262,0.00019177,2]
[362915567,1748520638838,-500.0,0.00019177,2]
[362915568,1748520638847,-500.0,0.00019177,2]
[362915570,1748520638856,-389.80733027,0.00019177,2]
[362915571,1748520638865,-565.76114262,0.00019177,2]
[362915572,1748520638876,-565.76114262,0.00019177,2]
[362915573,1748520638886,-565.76114262,0.00019177,2]
[362915574,1748520638896,-565.76114262,0.00019177,2]
[362915575,1748520638905,-565.76114262,0.00019177,2]
[362915576,1748520638915,-565.76114262,0.00019177,2]
[362915577,1748520638924,-565.76114262,0.00019177,2]
[362915578,1748520638933,-565.76114262,0.00019177,2]
[362915579,1748520638943,-565.76114262,0.00019177,2]
[362915580,1748520638952,-565.76114262,0.00019177,2]
[362915581,1748520638962,-565.76114262,0.00019177,2]
[362915582,1748520638971,-565.76114262,0.00019177,2]
[362915583,1748520638980,-565.76114262,0.00019177,2]
[362915584,1748520638990,-565.76114262,0.00019177,2]
[362915585,1748520639001,-565.76114262,0.00019177,2]
[362915586,1748520639010,-565.76114262,0.00019177,2]
[362915587,1748520639020,-565.76114262,0.00019177,2]
[362915588,1748520639030,-565.76114262,0.00019177,2]
[362915589,1748520639039,-565.76114262,0.00019177,2]
[362915590,1748520639048,-565.76114262,0.00019177,2]
[362915591,1748520639057,-565.76114262,0.00019177,2]
[362915592,1748520639066,-565.76114262,0.00019177,2]
[362915593,1748520639075,-565.76114262,0.00019177,2]
[362915594,1748520639084,-594.04919977,0.00019177,2]
[362915595,1748520639093,-594.04919977,0.00019177,2]
[362915596,1748520639103,-594.04919977,0.00019177,2]
[362915597,1748520639112,-594.04919977,0.00019177,2]
[362915598,1748520639122,-594.04919977,0.00019177,2]
[362915599,1748520639131,-594.04919977,0.00019177,2]
[362915600,1748520639140,-404.45666876,0.00019178,2]
[362915601,1748520639150,-430.0,0.00019178,2]
[362915602,1748520639159,-430.0,0.00019178,2]
[362915603,1748520639169,-430.0,0.00019178,2]
[362915604,1748520639179,-430.0,0.00019178,2]
[362915605,1748520639188,-430.0,0.00019178,2]
[362915606,1748520639198,-430.0,0.00019178,2]
[362915607,1748520639207,-430.0,0.00019178,2]
[362915608,1748520639216,-430.0,0.00019178,2]
[362915609,1748520639225,-430.0,0.00019178,2]
[362915610,1748520639235,-395.46345094,0.00019178,2]
[362915611,1748520639244,-430.0,0.00019178,2]
[362915612,1748520639254,-430.0,0.00019178,2]
[362915613,1748520639263,-418.58263708,0.00019178,2]
[362915614,1748520639272,-400.0,0.00019178,2]
[362915615,1748520639282,-430.0,0.00019178,2]
[362915616,1748520639291,-430.0,0.00019178,2]
[362915617,1748520639300,-430.0,0.00019178,2]
[362915618,1748520639309,-430.0,0.00019178,2]
[362915619,1748520639318,-430.0,0.00019178,2]
[362915620,1748520639327,-255.77818081,0.00019178,2]
[362915621,1748520639336,-430.0,0.00019178,2]
[362915622,1748520639346,-430.0,0.00019178,2]
[362915623,1748520639354,-430.0,0.00019178,2]
[362915624,1748520639364,-430.0,0.00019178,2]
[362915625,1748520639373,-430.0,0.00019178,2]
[362915626,1748520639382,-430.0,0.00019178,2]
[362915627,1748520639391,-315.02899805,0.00019178,2]
[362915628,1748520639401,-430.0,0.00019178,2]
[362915629,1748520639410,-430.0,0.00019178,2]
[362915630,1748520639419,-430.0,0.00019178,2]
[362915631,1748520639428,-500.0,0.00019178,2]
[362915632,1748520639437,-500.0,0.00019178,2]
[362915633,1748520639446,-430.0,0.00019178,2]
[362915634,1748520639456,-330.40486328,0.00019178,2]
[362915635,1748520639465,-430.0,0.00019178,2]
[362915636,1748520639475,-430.0,0.00019178,2]
[362915637,1748520639484,-430.0,0.00019178,2]
[362915638,1748520639495,-433.03742279,0.00019178,2]
[362915639,1748520639504,-430.0,0.00019178,2]
[362915640,1748520639513,-435.86175783,0.00019178,2]
[362915641,1748520639523,-347.62075504,0.00019178,2]
[362915642,1748520639531,-450.0,0.00019178,2]
[362915643,1748520639540,-430.0,0.00019178,2]
[362915644,1748520639550,-400.0,0.00019178,2]
[362915645,1748520639559,-430.0,0.00019178,2]
[362915646,1748520639569,-430.0,0.00019178,2]
[362915647,1748520639579,-466.83916852,0.00019178,2]
[362915648,1748520639588,-430.0,0.00019178,2]
[362915649,1748520639598,-430.0,0.00019178,2]
[362915650,1748520639609,-430.0,0.00019178,2]
[362915651,1748520639618,-430.0,0.00019178,2]
[362915652,1748520639627,-430.0,0.00019178,2]
[362915653,1748520639639,-430.0,0.00019178,2]
[362915654,1748520639652,-218.57,0.00019178,2]
[362915655,1748520639662,-430.0,0.00019178,2]
[362915656,1748520639671,-430.0,0.00019178,2]
[362915657,1748520639681,-430.0,0.00019178,2]
[362915658,1748520639692,-430.0,0.00019178,2]
[362915659,1748520639701,-471.53942268,0.00019178,2]
[362915660,1748520639711,-430.0,0.00019178,2]
[362915661,1748520639721,-479.81154939,0.00019178,2]
[362915662,1748520639732,-430.0,0.00019178,2]
[362915663,1748520639742,-441.92928062,0.00019178,2]
[362915664,1748520639753,-430.0,0.00019178,2]
[362915665,1748520639762,-430.0,0.00019178,2]
[362915666,1748520639771,-430.0,0.00019178,2]
[362915667,1748520639781,-559.70322068,0.00019178,2]
[362915668,1748520639790,-430.0,0.00019178,2]
[362915669,1748520639799,-430.0,0.00019178,2]
[362915670,1748520639809,-430.0,0.00019178,2]
[362915671,1748520639818,-430.0,0.00019178,2]
[362915672,1748520639828,-430.0,0.00019178,2]
[362915673,1748520639837,-350.0,0.00019178,2]
[362915674,1748520639847,-430.0,0.00019178,2]
[362915675,1748520639856,-450.0,0.00019178,2]
[362915676,1748520639866,-430.0,0.00019178,2]
[362915677,1748520639875,-451.24494781,0.00019178,2]
[362915678,1748520639884,-430.0,0.00019178,2]
[362915679,1748520639894,-450.0,0.00019178,2]
[362915680,1748520639903,-430.0,0.00019178,2]
[362915681,1748520639912,-430.0,0.00019178,2]
[362915682,1748520639922,-450.0,0.00019178,2]
[362915683,1748520639931,-430.0,0.00019178,2]
[362915684,1748520639941,-500.84550072,0.00019178,2]
[362915685,1748520639950,-430.0,0.00019178,2]
[362915686,1748520639960,-320.0,0.00019178,2]
[362915687,1748520639970,-432.42025184,0.00019178,2]
[362915688,1748520639979,-430.0,0.00019178,2]
[362915689,1748520639988,-350.0,0.00019178,2]
[362915690,1748520639999,-430.0,0.00019178,2]
[362915691,1748520640008,-430.0,0.00019178,2]
[362915692,1748520640017,-430.0,0.00019178,2]
[362915694,1748520640027,-430.0,0.00019178,2]
[362915695,1748520640037,-315.64008722,0.00019178,2]
[362915696,1748520640047,-430.0,0.00019178,2]
[362915697,1748520640056,-430.0,0.00019178,2]
[362915698,1748520640065,-430.0,0.00019178,2]
[362915699,1748520640074,-430.0,0.00019178,2]
[362915700,1748520640084,-430.0,0.00019178,2]
[362915701,1748520640093,-430.0,0.00019178,2]
[362915702,1748520640102,-430.0,0.00019178,2]
[362915703,1748520640111,-430.0,0.00019178,2]
[362915704,1748520640121,-419.34525243,0.00019178,2]
[362915705,1748520640131,-400.0,0.00019178,2]
[362915706,1748520640140,-430.0,0.00019178,2]
[362915707,1748520640150,-430.0,0.00019178,2]
[362915708,1748520640159,-430.0,0.00019178,2]
[362915709,1748520640168,-430.0,0.00019178,2]
[362915710,1748520640178,-430.0,0.00019178,2]
[362915711,1748520640187,-430.0,0.00019178,2]
[362915712,1748520640197,-430.0,0.00019178,2]
[362915713,1748520640206,-430.0,0.00019178,2]
[362915714,1748520640215,-430.0,0.00019178,2]
[362915715,1748520640225,-430.0,0.00019178,2]
[362915716,1748520640234,-300.0,0.00019178,2]
[362915718,1748520640243,-180.61793824,0.00019178,2]
[362915720,1748520640254,-430.0,0.00019178,2]
[362915721,1748520640264,-430.0,0.00019178,2]
[362915722,1748520640274,-430.0,0.00019178,2]
[362915723,1748520640284,-430.0,0.00019178,2]
[362915724,1748520640293,-430.0,0.00019178,2]
[362915725,1748520640314,-350.0,0.00019178,2]
[362915726,1748520640327,-350.0,0.00019178,2]
[362915727,1748520640345,-430.0,0.00019178,2]
[362915729,1748520640358,-430.0,0.00019178,2]
[362915731,1748520640369,-430.0,0.00019178,2]
[362915732,1748520640379,-430.0,0.00019178,2]
[362915733,1748520640389,-430.0,0.00019178,2]
[362915734,1748520640400,-310.0,0.00019178,2]
[362915735,1748520640409,-430.0,0.00019178,2]
[362915736,1748520640419,-430.0,0.00019178,2]
[362915737,1748520640429,-300.0,0.00019178,2]
[362915738,1748520640439,-430.0,0.00019178,2]
[362915739,1748520640454,-430.0,0.00019178,2]
[362915741,1748520640464,-430.0,0.00019178,2]
[362915742,1748520640475,-430.0,0.00019178,2]
[362915743,1748520640486,-430.0,0.00019178,2]
[362915744,1748520640496,-500.0,0.00019178,2]
[362915745,1748520640507,-534.07313543,0.00019178,2]
[362915747,1748520640518,-430.0,0.00019178,2]
[362915748,1748520640527,-430.0,0.00019178,2]
[362915749,1748520640538,-235.92462203,0.00019178,2]
[362915750,1748520640548,-360.99160513,0.00019178,2]
[362915751,1748520640558,-430.0,0.00019178,2]
[362915752,1748520640567,-430.0,0.00019178,2]
[362915753,1748520640577,-430.0,0.00019178,2]
[362915754,1748520640587,-430.0,0.00019178,2]
[362915755,1748520640596,-249.19350403,0.00019178,2]
[362915756,1748520640606,-430.0,0.00019178,2]
[362915757,1748520640616,-430.0,0.00019178,2]
[362915759,1748520640626,-430.0,0.00019178,2]
[362915760,1748520640636,-340.0,0.00019178,2]
[362915761,1748520640648,-430.0,0.00019178,2]
[362915762,1748520640658,-430.0,0.00019178,2]
[362915763,1748520640668,-430.0,0.00019178,2]
[362915765,1748520640679,-430.0,0.00019178,2]
[362915766,1748520640690,-430.0,0.00019178,2]
[362915767,1748520640700,-430.0,0.00019178,2]
[362915768,1748520640710,-430.0,0.00019178,2]
[362915769,1748520640721,-470.67927095,0.00019178,2]
[362915770,1748520640732,-430.0,0.00019178,2]
[362915771,1748520640742,-430.0,0.00019178,2]
[362915772,1748520640753,-430.0,0.00019178,2]
[362915773,1748520640763,-430.0,0.00019178,2]
[362915774,1748520640772,-430.0,0.00019178,2]
[362915775,1748520640782,-430.0,0.00019178,2]
[362915777,1748520640791,-504.41085463,0.00019178,2]
[362915779,1748520640800,-430.0,0.00019178,2]
[362915781,1748520640809,-430.0,0.00019178,2]
[362915783,1748520640819,-430.0,0.00019178,2]
[362915785,1748520640828,-430.0,0.00019178,2]
[362915787,1748520640838,-430.0,0.00019178,2]
[362915789,1748520640847,-430.0,0.00019178,2]
[362915791,1748520640857,-430.0,0.00019178,2]
[362915794,1748520640867,-430.0,0.00019178,2]
[362915796,1748520640876,-430.0,0.00019178,2]
[362915797,1748520640886,-430.0,0.00019178,2]
[362915800,1748520640895,-228.8966957,0.00019178,2]
[362915801,1748520640905,-430.0,0.00019178,2]
[362915803,1748520640914,-340.0,0.00019178,2]
[362915805,1748520640924,-430.0,0.00019178,2]
[362915807,1748520640933,-351.03255134,0.00019178,2]
[362915808,1748520640942,-430.0,0.00019178,2]
[362915809,1748520640952,-261.65358283,0.00019178,2]
[362915810,1748520640961,-500.0,0.00019178,2]
[362915811,1748520640970,-500.0,0.00019178,2]
[362915812,1748520640980,-500.0,0.00019178,2]
[362915813,1748520640989,-500.0,0.00019178,2]
[362915814,1748520640999,-500.0,0.00019178,2]
[362915816,1748520641009,-430.0,0.00019178,2]
[362915818,1748520641019,-430.0,0.00019178,2]
[362915819,1748520641028,-344.04898159,0.00019178,2]
[362915820,1748520641037,-430.0,0.00019178,2]
[362915821,1748520641046,-430.0,0.00019178,2]
[362915822,1748520641056,-340.0,0.00019178,2]
[362915823,1748520641065,-430.0,0.00019178,2]
[362915824,1748520641075,-340.0,0.00019178,2]
[362915825,1748520641084,-430.0,0.00019178,2]
[362915826,1748520641094,-430.0,0.00019178,2]
[362915827,1748520641103,-430.0,0.00019178,2]
[362915828,1748520641113,-430.0,0.00019178,2]
[362915829,1748520641122,-403.0591896,0.00019178,2]
[362915830,1748520641132,-430.0,0.00019178,2]
[362915831,1748520641142,-430.0,0.00019178,2]
[362915832,1748520641153,-430.0,0.00019178,2]
[362915833,1748520641162,-430.0,0.00019178,2]
[362915834,1748520641172,-450.0,0.00019178,2]
[362915835,1748520641180,-430.0,0.00019178,2]
[362915836,1748520641190,-430.0,0.00019178,2]
[362915837,1748520641323,-430.0,0.00019178,2]
[362915838,1748520641333,-430.0,0.00019178,2]
[362915839,1748520641343,-430.0,0.00019178,2]
[362915840,1748520641353,-430.0,0.00019178,2]
[362915841,1748520641362,-430.0,0.00019178,2]
[362915842,1748520641371,-430.0,0.00019178,2]
[362915843,1748520641382,-344.82727651,0.00019178,2]
[362915844,1748520641392,-155.43779901,0.00019178,2]
[362915845,1748520641402,-430.0,0.00019178,2]
[362915846,1748520641412,-310.0,0.00019178,2]
[362915847,1748520641422,-430.0,0.00019178,2]
[362915848,1748520641433,-430.0,0.00019178,2]
[362915849,1748520641443,-430.0,0.00019178,2]
[362915850,1748520641452,-430.0,0.00019178,2]
[362915851,1748520641462,-256.8820146,0.00019178,2]
[362915852,1748520641472,-430.0,0.00019178,2]
[362915853,1748520641482,-430.0,0.00019178,2]
[362915854,1748520641492,-430.0,0.00019178,2]
[362915855,1748520641503,-430.0,0.00019178,2]
[362915856,1748520641513,-430.0,0.00019178,2]
[362915857,1748520641523,-402.47465961,0.00019178,2]
[362915858,1748520641532,-430.0,0.00019178,2]
[362915859,1748520641542,-430.0,0.00019178,2]
[362915860,1748520641552,-430.0,0.00019178,2]
[362915861,1748520641561,-430.0,0.00019178,2]
[362915862,1748520641571,-430.0,0.00019178,2]